[Event "Titled Tuesday Blitz January 10 Early 2023"]
[White "Oparin, Grigoriy"]
[Black "Cherniaiev, Tykhon"]
[WhiteFideId "24125890"]
[BlackFideId "14182360"]
[WhiteElo "2667"]
[BlackElo "2330"]
[Result "1-0"]
[Round "09"]
[TimeControl "180+2"]
[Date "2023.01.10"]
[WhiteClock "0:01:43"]
[BlackClock "0:00:10"]

1. g3 {[%clk 0:02:57]}  Nf6 {[%clk 0:02:57]} 2. Bg2 {[%clk 0:02:58]}  d5 {[%clk 0:02:58]} 3. c4 {[%clk 0:02:58]}  e6 {[%clk 0:02:58]} 4. Nf3 {[%clk 0:02:59]}  Be7 {[%clk 0:02:58]} 5. d4 {[%clk 0:02:59]}  dxc4 {[%clk 0:02:55]} 6. Qa4+ {[%clk 0:02:59]}  Bd7 {[%clk 0:02:53]} 7. Qxc4 {[%clk 0:02:58]}  a6 {[%clk 0:02:43]} 8. O-O {[%clk 0:02:58]}  O-O {[%clk 0:02:36]} 9. Bg5 {[%clk 0:02:58]}  h6 {[%clk 0:02:25]} 10. Bxf6 {[%clk 0:02:58]}  Bxf6 {[%clk 0:02:26]} 11. Rd1 {[%clk 0:02:56]}  Nc6 {[%clk 0:02:23]} 12. e4 {[%clk 0:02:52]}  e5 {[%clk 0:02:12]} 13. dxe5 {[%clk 0:02:45]}  Nxe5 {[%clk 0:02:11]} 14. Nxe5 {[%clk 0:02:46]}  Bxe5 {[%clk 0:02:12]} 15. Nc3 {[%clk 0:02:46]}  Be6 {[%clk 0:02:04]} 16. Qc5 {[%clk 0:02:40]}  Qf6 {[%clk 0:01:55]} 17. f4 {[%clk 0:02:40]}  Bxc3 {[%clk 0:01:53]} 18. Qxc3 {[%clk 0:02:41]}  Qxc3 {[%clk 0:01:50]} 19. bxc3 {[%clk 0:02:42]}  f5 {[%clk 0:01:50]} 20. exf5 {[%clk 0:02:36]}  Rxf5 {[%clk 0:01:44]} 21. Bxb7 {[%clk 0:02:36]}  Rb8 {[%clk 0:01:42]} 22. Bxa6 {[%clk 0:02:34]}  Rc5 {[%clk 0:01:41]} 23. Rdc1 {[%clk 0:02:28]}  Rb2 {[%clk 0:01:33]} 24. a4 {[%clk 0:02:15]}  Rh5 {[%clk 0:00:54]} 25. h4 {[%clk 0:02:14]}  Bd5 {[%clk 0:00:54]} 26. Bf1 {[%clk 0:02:11]}  g5 {[%clk 0:00:53]} 27. Rd1 {[%clk 0:02:10]}  c6 {[%clk 0:00:47]} 28. c4 {[%clk 0:02:09]}  Be4 {[%clk 0:00:28]} 29. Rd4 {[%clk 0:02:08]}  Bf3 {[%clk 0:00:24]} 30. fxg5 {[%clk 0:02:07]}  hxg5 {[%clk 0:00:24]} 31. Rd3 {[%clk 0:02:04]}  Be4 {[%clk 0:00:19]} 32. Re3 {[%clk 0:02:04]}  Bf5 {[%clk 0:00:10]} 33. a5 {[%clk 0:02:02]}  gxh4 {[%clk 0:00:10]} 34. a6 {[%clk 0:02:01]}  Rb8 {[%clk 0:00:05]} 35. a7 {[%clk 0:01:56]}  Ra8 {[%clk 0:00:06]} 36. Rb3 {[%clk 0:01:53]}  Kg7 {[%clk 0:00:06]} 37. Rb8 {[%clk 0:01:52]}  Rh8 {[%clk 0:00:06]} 38. Rxa8 {[%clk 0:01:49]}  Rxa8 {[%clk 0:00:06]} 39. Bg2 {[%clk 0:01:47]}  Bd7 {[%clk 0:00:04]} 40. gxh4 {[%clk 0:01:47]}  Kf6 {[%clk 0:00:05]} 41. h5 {[%clk 0:01:39]}  Ke5 {[%clk 0:00:05]} 42. h6 {[%clk 0:01:39]}  Kd6 {[%clk 0:00:04]} 43. h7 {[%clk 0:01:38]}  Kc7 {[%clk 0:00:01]} 44. h8=Q {[%clk 0:01:38]}  Rxh8 {[%clk 0:00:02]} 45. a8=Q {[%clk 0:01:39]}  Rxa8 {[%clk 0:00:03]} 46. Rxa8 {[%clk 0:01:40]}  c5 {[%clk 0:00:03]} 47. Ra7+ {[%clk 0:01:39]}  Kd6 {[%clk 0:00:03]} 48. Bd5 {[%clk 0:01:39]}  Bf5 {[%clk 0:00:03]} 49. Kg2 {[%clk 0:01:39]}  Ke5 {[%clk 0:00:04]} 50. Kf3 {[%clk 0:01:38]}  Kd4 {[%clk 0:00:04]} 51. Kf4 {[%clk 0:01:37]}  Bd3 {[%clk 0:00:05]} 52. Rd7 {[%clk 0:01:37]}  Bxc4 {[%clk 0:00:05]} 53. Bxc4+ {[%clk 0:01:38]}  Kxc4 {[%clk 0:00:06]} 54. Ke4 {[%clk 0:01:38]}  Kc3 {[%clk 0:00:06]} 55. Rc7 {[%clk 0:01:39]}  c4 {[%clk 0:00:06]} 56. Kd5 {[%clk 0:01:40]}  Kd3 {[%clk 0:00:05]} 57. Rxc4 {[%clk 0:01:41]}  Kd2 {[%clk 0:00:05]} 58. Kd4 {[%clk 0:01:41]}  Ke2 {[%clk 0:00:06]} 59. Rc3 {[%clk 0:01:41]}  Kf2 {[%clk 0:00:06]} 60. Ke4 {[%clk 0:01:41]}  Kg2 {[%clk 0:00:07]} 61. Kf4 {[%clk 0:01:41]}  Kh2 {[%clk 0:00:07]} 62. Kg4 {[%clk 0:01:42]}  Kg2 {[%clk 0:00:08]} 63. Rc2+ {[%clk 0:01:42]}  Kg1 {[%clk 0:00:09]} 64. Kf3 {[%clk 0:01:42]}  Kh1 {[%clk 0:00:09]} 65. Kg3 {[%clk 0:01:43]}  Kg1 {[%clk 0:00:10]} 66. Rc1# {[%clk 0:01:43]} 1-0


[Site "https://www.chess.com"]

[Event "Titled Tuesday Blitz January 10 Early 2023"]
[White "Wagner, Dennis"]
[Black "Durarbayli, Vasif"]
[WhiteFideId "24650684"]
[BlackFideId "13402935"]
[WhiteElo "2595"]
[BlackElo "2627"]
[Result "0-1"]
[Round "09"]
[TimeControl "180+2"]
[Date "2023.01.10"]
[WhiteClock "0:00:05"]
[BlackClock "0:00:06"]

1. d4 {[%clk 0:03:00]}  d5 {[%clk 0:02:59]} 2. c4 {[%clk 0:03:00]}  c5 {[%clk 0:02:59]} 3. cxd5 {[%clk 0:02:55]}  cxd4 {[%clk 0:02:59]} 4. Nf3 {[%clk 0:02:55]}  Nf6 {[%clk 0:02:59]} 5. Qxd4 {[%clk 0:02:53]}  Qxd5 {[%clk 0:02:59]} 6. Nc3 {[%clk 0:02:54]}  Qxd4 {[%clk 0:02:58]} 7. Nxd4 {[%clk 0:02:55]}  a6 {[%clk 0:02:59]} 8. g3 {[%clk 0:02:47]}  e5 {[%clk 0:02:57]} 9. Nb3 {[%clk 0:02:46]}  Bd7 {[%clk 0:02:48]} 10. Bg2 {[%clk 0:02:37]}  Bc6 {[%clk 0:02:48]} 11. O-O {[%clk 0:02:37]}  Bb4 {[%clk 0:02:46]} 12. Bd2 {[%clk 0:02:34]}  Bxg2 {[%clk 0:02:35]} 13. Kxg2 {[%clk 0:02:35]}  Nc6 {[%clk 0:02:35]} 14. a3 {[%clk 0:02:32]}  Bxc3 {[%clk 0:02:34]} 15. Bxc3 {[%clk 0:02:33]}  Nd5 {[%clk 0:02:29]} 16. Rac1 {[%clk 0:02:17]}  f6 {[%clk 0:02:17]} 17. Rfd1 {[%clk 0:02:17]}  O-O-O {[%clk 0:02:00]} 18. Ba5 {[%clk 0:02:03]}  Nc7 {[%clk 0:01:52]} 19. Bb6 {[%clk 0:01:49]}  Rxd1 {[%clk 0:01:46]} 20. Rxd1 {[%clk 0:01:50]}  Rd8 {[%clk 0:01:44]} 21. Rxd8+ {[%clk 0:01:42]}  Nxd8 {[%clk 0:01:42]} 22. Kf3 {[%clk 0:01:36]}  Nde6 {[%clk 0:01:28]} 23. Ke4 {[%clk 0:01:25]}  Ng5+ {[%clk 0:01:22]} 24. Kd3 {[%clk 0:01:16]}  Nd5 {[%clk 0:01:22]} 25. Bc5 {[%clk 0:01:13]}  Kd7 {[%clk 0:01:12]} 26. h4 {[%clk 0:01:07]}  Ne6 {[%clk 0:01:11]} 27. e4 {[%clk 0:01:06]}  Ndc7 {[%clk 0:01:07]} 28. Be3 {[%clk 0:00:59]}  Nb5 {[%clk 0:00:51]} 29. f3 {[%clk 0:00:50]}  Nd6 {[%clk 0:00:48]} 30. Kc3 {[%clk 0:00:41]}  Kc6 {[%clk 0:00:46]} 31. Kb4 {[%clk 0:00:34]}  b6 {[%clk 0:00:45]} 32. a4 {[%clk 0:00:31]}  a5+ {[%clk 0:00:30]} 33. Kc3 {[%clk 0:00:31]}  g6 {[%clk 0:00:30]} 34. Nc1 {[%clk 0:00:22]}  f5 {[%clk 0:00:27]} 35. exf5 {[%clk 0:00:17]}  gxf5 {[%clk 0:00:26]} 36. Nd3 {[%clk 0:00:08]}  e4 {[%clk 0:00:26]} 37. Ne5+ {[%clk 0:00:08]}  Kd5 {[%clk 0:00:26]} 38. f4 {[%clk 0:00:07]}  b5 {[%clk 0:00:24]} 39. axb5 {[%clk 0:00:05]}  Nxb5+ {[%clk 0:00:25]} 40. Kd2 {[%clk 0:00:05]}  a4 {[%clk 0:00:21]} 41. g4 {[%clk 0:00:05]}  Nd6 {[%clk 0:00:19]} 42. Kc3 {[%clk 0:00:02]}  fxg4 {[%clk 0:00:12]} 43. Nxg4 {[%clk 0:00:03]}  Nf5 {[%clk 0:00:13]} 44. Bf2 {[%clk 0:00:03]}  Nc5 {[%clk 0:00:12]} 45. Ne3+ {[%clk 0:00:02]}  Nxe3 {[%clk 0:00:11]} 46. Bxe3 {[%clk 0:00:03]}  Nd3 {[%clk 0:00:12]} 47. Bd2 {[%clk 0:00:04]}  Ke6 {[%clk 0:00:09]} 48. Kd4 {[%clk 0:00:03]}  Kf5 {[%clk 0:00:09]} 49. Kc3 {[%clk 0:00:02]}  Nxf4 {[%clk 0:00:09]} 50. Kb4 {[%clk 0:00:02]}  Nd3+ {[%clk 0:00:09]} 51. Kxa4 {[%clk 0:00:02]}  Nxb2+ {[%clk 0:00:10]} 52. Kb3 {[%clk 0:00:03]}  Nd3 {[%clk 0:00:08]} 53. Kc2 {[%clk 0:00:04]}  h5 {[%clk 0:00:08]} 54. Bg5 {[%clk 0:00:03]}  Ne5 {[%clk 0:00:09]} 55. Kd1 {[%clk 0:00:03]}  Nf3 {[%clk 0:00:09]} 56. Bd8 {[%clk 0:00:03]}  Kg4 {[%clk 0:00:09]} 57. Ke2 {[%clk 0:00:04]}  Kf5 {[%clk 0:00:04]} 58. Ke3 {[%clk 0:00:04]}  Ne5 {[%clk 0:00:05]} 59. Be7 {[%clk 0:00:03]}  Nc4+ {[%clk 0:00:05]} 60. Ke2 {[%clk 0:00:03]}  Ke5 {[%clk 0:00:05]} 61. Bd8 {[%clk 0:00:03]}  Kd4 {[%clk 0:00:05]} 62. Bf6+ {[%clk 0:00:04]}  Kd5 {[%clk 0:00:06]} 63. Bd8 {[%clk 0:00:03]}  Nd6 {[%clk 0:00:06]} 64. Bg5 {[%clk 0:00:03]}  Nf5 {[%clk 0:00:07]} 65. Bd8 {[%clk 0:00:03]}  Kd4 {[%clk 0:00:08]} 66. Bf6+ {[%clk 0:00:03]}  Kd5 {[%clk 0:00:08]} 67. Bd8 {[%clk 0:00:04]}  Ke5 {[%clk 0:00:08]} 68. Bg5 {[%clk 0:00:05]}  Ke6 {[%clk 0:00:08]} 69. Kf2 {[%clk 0:00:05]}  Kd6 {[%clk 0:00:07]} 70. Ke2 {[%clk 0:00:05]}  Kd5 {[%clk 0:00:07]} 71. Kf2 {[%clk 0:00:05]}  Ke5 {[%clk 0:00:08]} 72. Ke2 {[%clk 0:00:06]}  Nd4+ {[%clk 0:00:08]} 73. Ke3 {[%clk 0:00:06]}  Nf3 {[%clk 0:00:08]} 74. Bd8 {[%clk 0:00:06]}  Kf5 {[%clk 0:00:09]} 75. Be7 {[%clk 0:00:06]}  Ne5 {[%clk 0:00:09]} 76. Bd8 {[%clk 0:00:06]}  Nc4+ {[%clk 0:00:06]} 77. Ke2 {[%clk 0:00:06]}  Nd6 {[%clk 0:00:05]} 78. Ke3 {[%clk 0:00:06]}  Nb5 {[%clk 0:00:05]} 79. Be7 {[%clk 0:00:06]}  Nc3 {[%clk 0:00:03]} 80. Bd8 {[%clk 0:00:06]}  Nd5+ {[%clk 0:00:04]} 81. Ke2 {[%clk 0:00:07]}  Kg4 {[%clk 0:00:04]} 82. Bg5 {[%clk 0:00:06]}  Kg3 {[%clk 0:00:04]} 83. Bd8 {[%clk 0:00:06]}  Kf4 {[%clk 0:00:03]} 84. Bg5+ {[%clk 0:00:06]}  Ke5 {[%clk 0:00:04]} 85. Bd8 {[%clk 0:00:07]}  e3 {[%clk 0:00:04]} 86. Kf3 {[%clk 0:00:07]}  Kd4 {[%clk 0:00:05]} 87. Ke2 {[%clk 0:00:06]}  Ke4 {[%clk 0:00:05]} 88. Bg5 {[%clk 0:00:07]}  Nc3+ {[%clk 0:00:05]} 89. Ke1 {[%clk 0:00:07]}  Kf3 {[%clk 0:00:06]} 90. Kf1 {[%clk 0:00:07]}  Ne4 {[%clk 0:00:04]} 91. Ke1 {[%clk 0:00:04]}  Nxg5 {[%clk 0:00:02]} 92. hxg5 {[%clk 0:00:05]}  h4 {[%clk 0:00:03]} 93. g6 {[%clk 0:00:05]}  h3 {[%clk 0:00:04]} 94. g7 {[%clk 0:00:05]}  h2 {[%clk 0:00:04]} 95. g8=Q {[%clk 0:00:06]}  h1=Q+ {[%clk 0:00:05]} 96. Qg1 {[%clk 0:00:05]}  Qxg1# {[%clk 0:00:06]} 0-1


[Site "https://www.chess.com"]

[Event "Titled Tuesday Blitz January 10 Early 2023"]
[White "Baskakov, Egor"]
[Black "Maksimovic, Bojan"]
[WhiteFideId "24197866"]
[BlackFideId "14408120"]
[WhiteElo "2215"]
[BlackElo "2486"]
[Result "1-0"]
[Round "09"]
[TimeControl "180+2"]
[Date "2023.01.10"]
[WhiteClock "0:00:10"]
[BlackClock "0:00:02"]

1. e4 {[%clk 0:03:00]}  g6 {[%clk 0:02:50]} 2. g3 {[%clk 0:02:54]}  Bg7 {[%clk 0:02:48]} 3. Bg2 {[%clk 0:02:55]}  d6 {[%clk 0:02:48]} 4. Ne2 {[%clk 0:02:54]}  Bd7 {[%clk 0:02:45]} 5. d4 {[%clk 0:02:54]}  Qc8 {[%clk 0:02:43]} 6. h3 {[%clk 0:02:54]}  h5 {[%clk 0:02:30]} 7. c4 {[%clk 0:02:51]}  Nc6 {[%clk 0:02:27]} 8. Nbc3 {[%clk 0:02:49]}  e5 {[%clk 0:02:25]} 9. Be3 {[%clk 0:02:49]}  exd4 {[%clk 0:02:19]} 10. Nxd4 {[%clk 0:02:50]}  Ne5 {[%clk 0:02:19]} 11. Qe2 {[%clk 0:02:48]}  Ne7 {[%clk 0:02:14]} 12. O-O-O {[%clk 0:02:45]}  a6 {[%clk 0:02:08]} 13. f4 {[%clk 0:02:43]}  N5c6 {[%clk 0:02:06]} 14. Nd5 {[%clk 0:02:43]}  Nxd5 {[%clk 0:01:47]} 15. exd5 {[%clk 0:02:36]}  Ne7 {[%clk 0:01:46]} 16. Bf2 {[%clk 0:02:33]}  Kf8 {[%clk 0:01:45]} 17. Rde1 {[%clk 0:02:13]}  Bf6 {[%clk 0:01:45]} 18. Qd2 {[%clk 0:01:56]}  Kg7 {[%clk 0:01:40]} 19. Qc3 {[%clk 0:01:56]}  Qd8 {[%clk 0:01:38]} 20. Bf3 {[%clk 0:01:33]}  Nf5 {[%clk 0:01:34]} 21. g4 {[%clk 0:01:32]}  Nxd4 {[%clk 0:01:30]} 22. Bxd4 {[%clk 0:01:28]}  hxg4 {[%clk 0:01:19]} 23. hxg4 {[%clk 0:01:26]}  Bxd4 {[%clk 0:01:19]} 24. Qxd4+ {[%clk 0:01:25]}  Qf6 {[%clk 0:01:19]} 25. Qxf6+ {[%clk 0:01:25]}  Kxf6 {[%clk 0:01:20]} 26. g5+ {[%clk 0:01:23]}  Kg7 {[%clk 0:01:20]} 27. Rxh8 {[%clk 0:01:22]}  Rxh8 {[%clk 0:01:19]} 28. Re7 {[%clk 0:01:22]}  Rd8 {[%clk 0:01:20]} 29. Kd2 {[%clk 0:01:17]}  Kf8 {[%clk 0:01:19]} 30. Re2 {[%clk 0:01:16]}  Bf5 {[%clk 0:01:18]} 31. Be4 {[%clk 0:01:13]}  Bg4 {[%clk 0:01:06]} 32. Rg2 {[%clk 0:01:12]}  Bd7 {[%clk 0:00:55]} 33. Kd3 {[%clk 0:01:06]}  Re8 {[%clk 0:00:51]} 34. b4 {[%clk 0:01:03]}  b6 {[%clk 0:00:44]} 35. a3 {[%clk 0:01:01]}  Kg7 {[%clk 0:00:43]} 36. Rh2 {[%clk 0:00:59]}  Ra8 {[%clk 0:00:41]} 37. c5 {[%clk 0:00:43]}  bxc5 {[%clk 0:00:34]} 38. bxc5 {[%clk 0:00:44]}  dxc5 {[%clk 0:00:35]} 39. Rc2 {[%clk 0:00:41]}  Bb5+ {[%clk 0:00:30]} 40. Kd2 {[%clk 0:00:36]}  Re8 {[%clk 0:00:19]} 41. Bf3 {[%clk 0:00:35]}  c4 {[%clk 0:00:13]} 42. a4 {[%clk 0:00:35]}  Bxa4 {[%clk 0:00:13]} 43. Rxc4 {[%clk 0:00:35]}  Bb5 {[%clk 0:00:08]} 44. Rxc7 {[%clk 0:00:35]}  Rh8 {[%clk 0:00:08]} 45. Ra7 {[%clk 0:00:29]}  Rh3 {[%clk 0:00:07]} 46. Be4 {[%clk 0:00:26]}  Rh4 {[%clk 0:00:04]} 47. Ke3 {[%clk 0:00:26]}  Rh2 {[%clk 0:00:04]} 48. Kd4 {[%clk 0:00:23]}  Kf8 {[%clk 0:00:03]} 49. d6 {[%clk 0:00:20]}  Re2 {[%clk 0:00:02]} 50. Bd5 {[%clk 0:00:19]}  Kg7 {[%clk 0:00:01]} 51. Rxf7+ {[%clk 0:00:18]}  Kh8 {[%clk 0:00:02]} 52. Rf8+ {[%clk 0:00:14]}  Kg7 {[%clk 0:00:02]} 53. d7 {[%clk 0:00:12]}  Bxd7 {[%clk 0:00:01]} 54. Rf7+ {[%clk 0:00:12]}  Kh8 {[%clk 0:00:02]} 55. Rxd7 {[%clk 0:00:13]}  a5 {[%clk 0:00:02]} 56. Ra7 {[%clk 0:00:13]}  Rd2+ {[%clk 0:00:02]} 57. Ke5 {[%clk 0:00:13]}  a4 {[%clk 0:00:02]} 58. Be4 {[%clk 0:00:13]}  Rd8 {[%clk 0:00:01]} 59. Rxa4 {[%clk 0:00:12]}  Kg7 {[%clk 0:00:01]} 60. Ra7+ {[%clk 0:00:12]}  Rd7 {[%clk 0:00:01]} 61. Rxd7+ {[%clk 0:00:11]}  Kf8 {[%clk 0:00:02]} 62. Bxg6 {[%clk 0:00:10]}  Kg8 {[%clk 0:00:02]} 63. Kf6 {[%clk 0:00:10]} 1-0


[Site "https://www.chess.com"]

[Event "Titled Tuesday Blitz January 10 Early 2023"]
[White "Perez Rodriguez, Luis Manuel"]
[Black "Pakleza, Zbigniew"]
[WhiteFideId "3503364"]
[BlackFideId "1119290"]
[WhiteElo "2329"]
[BlackElo "2494"]
[Result "0-1"]
[Round "09"]
[TimeControl "180+2"]
[Date "2023.01.10"]
[WhiteClock "0:00:22"]
[BlackClock "0:00:10"]

1. e4 {[%clk 0:02:54]}  d6 {[%clk 0:03:00]} 2. d4 {[%clk 0:02:53]}  Nf6 {[%clk 0:03:01]} 3. Nc3 {[%clk 0:02:53]}  c6 {[%clk 0:03:01]} 4. f4 {[%clk 0:02:52]}  Qb6 {[%clk 0:03:02]} 5. Nf3 {[%clk 0:02:48]}  Bg4 {[%clk 0:03:01]} 6. Be2 {[%clk 0:02:48]}  Bxf3 {[%clk 0:03:02]} 7. Bxf3 {[%clk 0:02:48]}  e5 {[%clk 0:03:01]} 8. Ne2 {[%clk 0:02:42]}  Nbd7 {[%clk 0:03:01]} 9. O-O {[%clk 0:02:40]}  d5 {[%clk 0:02:54]} 10. fxe5 {[%clk 0:02:34]}  Nxe5 {[%clk 0:02:55]} 11. exd5 {[%clk 0:02:28]}  Nxf3+ {[%clk 0:02:51]} 12. Rxf3 {[%clk 0:02:29]}  Nxd5 {[%clk 0:02:49]} 13. Nf4 {[%clk 0:02:19]}  O-O-O {[%clk 0:02:44]} 14. Nxd5 {[%clk 0:02:10]}  Rxd5 {[%clk 0:02:45]} 15. c3 {[%clk 0:02:10]}  f5 {[%clk 0:02:21]} 16. Qe2 {[%clk 0:02:07]}  Qd8 {[%clk 0:02:05]} 17. Bf4 {[%clk 0:01:52]}  Bd6 {[%clk 0:01:51]} 18. Bxd6 {[%clk 0:01:50]}  Qxd6 {[%clk 0:01:50]} 19. Re1 {[%clk 0:01:50]}  c5 {[%clk 0:01:39]} 20. dxc5 {[%clk 0:01:31]}  Qxc5+ {[%clk 0:01:38]} 21. Qf2 {[%clk 0:01:27]}  Qxf2+ {[%clk 0:01:33]} 22. Kxf2 {[%clk 0:01:27]}  Rhd8 {[%clk 0:01:28]} 23. Rfe3 {[%clk 0:01:27]}  R8d7 {[%clk 0:01:18]} 24. R1e2 {[%clk 0:01:24]}  Kc7 {[%clk 0:01:16]} 25. Re7 {[%clk 0:01:15]}  g6 {[%clk 0:01:12]} 26. h4 {[%clk 0:01:12]}  Rd3 {[%clk 0:01:08]} 27. Re8 {[%clk 0:00:58]}  b5 {[%clk 0:01:01]} 28. h5 {[%clk 0:00:54]}  gxh5 {[%clk 0:00:52]} 29. R8e5 {[%clk 0:00:51]}  R3d5 {[%clk 0:00:52]} 30. Kf3 {[%clk 0:00:50]}  Kc6 {[%clk 0:00:43]} 31. Re6+ {[%clk 0:00:40]}  Kc5 {[%clk 0:00:32]} 32. Re8 {[%clk 0:00:24]}  Kc4 {[%clk 0:00:24]} 33. R2e3 {[%clk 0:00:21]}  Rd2 {[%clk 0:00:15]} 34. Rc8+ {[%clk 0:00:19]}  Kd5 {[%clk 0:00:15]} 35. b3 {[%clk 0:00:17]}  Kd6 {[%clk 0:00:10]} 36. Rf8 {[%clk 0:00:16]}  Rxa2 {[%clk 0:00:06]} 37. Rxf5 {[%clk 0:00:16]}  a6 {[%clk 0:00:04]} 38. Rxh5 {[%clk 0:00:16]}  Kc7 {[%clk 0:00:03]} 39. Rc5+ {[%clk 0:00:15]}  Kb6 {[%clk 0:00:02]} 40. b4 {[%clk 0:00:16]}  Rf7+ {[%clk 0:00:03]} 41. Ke4 {[%clk 0:00:14]}  Rxg2 {[%clk 0:00:02]} 42. Kd5 {[%clk 0:00:15]}  Rg5+ {[%clk 0:00:02]} 43. Re5 {[%clk 0:00:15]}  Rxe5+ {[%clk 0:00:02]} 44. Kxe5 {[%clk 0:00:16]}  Rc7 {[%clk 0:00:02]} 45. Kd6 {[%clk 0:00:15]}  Rb7 {[%clk 0:00:01]} 46. Rc6+ {[%clk 0:00:15]}  Ka7 {[%clk 0:00:02]} 47. Kc5 {[%clk 0:00:16]}  h5 {[%clk 0:00:01]} 48. Rh6 {[%clk 0:00:16]}  Rc7+ {[%clk 0:00:02]} 49. Kd4 {[%clk 0:00:15]}  h4 {[%clk 0:00:02]} 50. Kd3 {[%clk 0:00:15]}  Rc4 {[%clk 0:00:03]} 51. Rg6 {[%clk 0:00:15]}  Kb7 {[%clk 0:00:03]} 52. Rh6 {[%clk 0:00:16]}  Rg4 {[%clk 0:00:03]} 53. Kc2 {[%clk 0:00:16]}  Rf4 {[%clk 0:00:02]} 54. Kb3 {[%clk 0:00:16]}  Ka7 {[%clk 0:00:02]} 55. Kb2 {[%clk 0:00:15]}  Rc4 {[%clk 0:00:02]} 56. Kb3 {[%clk 0:00:15]}  Rg4 {[%clk 0:00:02]} 57. Kb2 {[%clk 0:00:16]}  Kb7 {[%clk 0:00:03]} 58. Kb3 {[%clk 0:00:16]}  Rf4 {[%clk 0:00:02]} 59. Kb2 {[%clk 0:00:15]}  Re4 {[%clk 0:00:01]} 60. Kb3 {[%clk 0:00:16]}  Ka7 {[%clk 0:00:02]} 61. Kb2 {[%clk 0:00:16]}  Kb7 {[%clk 0:00:02]} 62. Kb3 {[%clk 0:00:17]}  Rc4 {[%clk 0:00:03]} 63. Kb2 {[%clk 0:00:17]}  Rg4 {[%clk 0:00:03]} 64. Kb3 {[%clk 0:00:18]}  Ka7 {[%clk 0:00:03]} 65. Kb2 {[%clk 0:00:18]}  Rg2+ {[%clk 0:00:04]} 66. Kb3 {[%clk 0:00:19]}  Rh2 {[%clk 0:00:05]} 67. Ka3 {[%clk 0:00:19]}  h3 {[%clk 0:00:05]} 68. Kb3 {[%clk 0:00:19]}  Rh1 {[%clk 0:00:06]} 69. Ka3 {[%clk 0:00:19]}  h2 {[%clk 0:00:06]} 70. Kb2 {[%clk 0:00:20]}  Kb7 {[%clk 0:00:07]} 71. Ka2 {[%clk 0:00:19]}  Kc7 {[%clk 0:00:07]} 72. Kb2 {[%clk 0:00:20]}  Kd7 {[%clk 0:00:08]} 73. Ka2 {[%clk 0:00:20]}  Ke7 {[%clk 0:00:09]} 74. Kb2 {[%clk 0:00:21]}  Kf7 {[%clk 0:00:10]} 75. Ka2 {[%clk 0:00:22]}  Kg7 {[%clk 0:00:10]} 76. Kb2 {[%clk 0:00:22]}  Kxh6 {[%clk 0:00:10]} 0-1


[Site "https://www.chess.com"]

[Event "Titled Tuesday Blitz January 10 Early 2023"]
[White "Mirzoev, Azer"]
[Black "Le, Tuan Minh"]
[WhiteFideId "13400304"]
[BlackFideId "12401153"]
[WhiteElo "2416"]
[BlackElo "2542"]
[Result "1-0"]
[Round "09"]
[TimeControl "180+2"]
[Date "2023.01.10"]
[WhiteClock "0:00:03"]
[BlackClock "0:00:26"]

1. Nf3 {[%clk 0:03:00]}  d5 {[%clk 0:02:59]} 2. c4 {[%clk 0:02:59]}  c6 {[%clk 0:02:51]} 3. e3 {[%clk 0:02:59]}  Nf6 {[%clk 0:02:51]} 4. Nc3 {[%clk 0:02:59]}  a6 {[%clk 0:02:51]} 5. d4 {[%clk 0:02:59]}  Bf5 {[%clk 0:02:43]} 6. Qb3 {[%clk 0:02:57]}  Ra7 {[%clk 0:02:42]} 7. cxd5 {[%clk 0:02:54]}  cxd5 {[%clk 0:02:42]} 8. Bd2 {[%clk 0:02:54]}  e6 {[%clk 0:02:42]} 9. Be2 {[%clk 0:02:53]}  Bd6 {[%clk 0:02:42]} 10. Ne5 {[%clk 0:02:51]}  h6 {[%clk 0:02:35]} 11. O-O {[%clk 0:02:50]}  O-O {[%clk 0:02:35]} 12. Rfc1 {[%clk 0:02:45]}  b5 {[%clk 0:02:33]} 13. Be1 {[%clk 0:02:37]}  Rc7 {[%clk 0:02:30]} 14. Nd1 {[%clk 0:02:30]}  Nbd7 {[%clk 0:02:23]} 15. Nxd7 {[%clk 0:02:21]}  Qxd7 {[%clk 0:02:14]} 16. Bb4 {[%clk 0:02:15]}  Rfc8 {[%clk 0:02:01]} 17. Rxc7 {[%clk 0:02:13]}  Qxc7 {[%clk 0:02:00]} 18. Bxd6 {[%clk 0:02:10]}  Qxd6 {[%clk 0:02:00]} 19. Bd3 {[%clk 0:01:49]}  Bxd3 {[%clk 0:02:00]} 20. Qxd3 {[%clk 0:01:49]}  Qb4 {[%clk 0:02:01]} 21. Kf1 {[%clk 0:01:37]}  Ne4 {[%clk 0:02:00]} 22. a3 {[%clk 0:01:32]}  Qa5 {[%clk 0:01:19]} 23. f3 {[%clk 0:01:22]}  Nd6 {[%clk 0:01:19]} 24. Ke2 {[%clk 0:01:11]}  Qc7 {[%clk 0:01:19]} 25. Qc3 {[%clk 0:00:50]}  Qb8 {[%clk 0:01:18]} 26. Qd3 {[%clk 0:00:44]}  h5 {[%clk 0:01:14]} 27. Kf2 {[%clk 0:00:29]}  h4 {[%clk 0:01:12]} 28. Kg1 {[%clk 0:00:23]}  Qc7 {[%clk 0:01:03]} 29. Nf2 {[%clk 0:00:22]}  Qa5 {[%clk 0:00:55]} 30. e4 {[%clk 0:00:16]}  Qa4 {[%clk 0:00:43]} 31. exd5 {[%clk 0:00:15]}  exd5 {[%clk 0:00:44]} 32. g3 {[%clk 0:00:14]}  hxg3 {[%clk 0:00:42]} 33. hxg3 {[%clk 0:00:15]}  Qc2 {[%clk 0:00:39]} 34. Rb1 {[%clk 0:00:13]}  Nf5 {[%clk 0:00:38]} 35. g4 {[%clk 0:00:07]}  Nxd4 {[%clk 0:00:31]} 36. Qxc2 {[%clk 0:00:06]}  Rxc2 {[%clk 0:00:31]} 37. Kg2 {[%clk 0:00:05]}  g5 {[%clk 0:00:29]} 38. Rd1 {[%clk 0:00:04]}  Ne6 {[%clk 0:00:27]} 39. Kg3 {[%clk 0:00:04]}  Nf4 {[%clk 0:00:27]} 40. b4 {[%clk 0:00:04]}  d4 {[%clk 0:00:26]} 41. Re1 {[%clk 0:00:03]}  d3 {[%clk 0:00:26]} 42. Rd1 {[%clk 0:00:03]} 1-0


[Site "https://www.chess.com"]